bitfinex/quotes_ETHUSD_20241030
["timestamp","ask_amount","ask_price","bid_price","bid_amount"]
[1730311307586,7.3346,2676.0,2675.4,4.55112]
[1730311307817,7.3346,2676.0,2675.5,3.73758]
[1730311307818,11.07164,2676.0,2675.5,3.73758]
[1730311308046,7.3346,2676.0,2675.5,3.73758]
[1730311308244,11.0716,2676.0,2675.5,3.73758]
[1730311308539,3.7372,2675.8,2675.4,0.8135]
[1730311308845,7.33452,2676.0,2675.4,0.8135]
[1730311309030,3.73758,2675.6,2675.4,0.8135]
[1730311309342,3.73761,2675.5,2675.4,0.8135]
[1730311309736,3.73748,2675.6,2675.4,0.8135]
[1730311310940,7.47508,2675.6,2675.4,0.8135]
[1730311311141,7.47508,2675.6,2674.9,0.7713]
[1730311311142,3.73777,2675.4,2674.9,0.7713]
[1730311311440,3.73798,2675.3,2674.9,0.7713]
[1730311311640,3.7382,2675.1,2674.9,0.7713]
[1730311312202,3.73814,2675.2,2674.9,0.7713]
[1730311312404,3.73802,2675.3,2674.9,0.7713]
[1730311312646,3.73769,2675.5,2675.0,3.73825]
[1730311312946,3.73765,2675.5,2675.0,7.47648]
[1730311313140,3.59757,2675.7,2675.1,4.56507061]
[1730311313344,3.73726,2675.8,2675.3,3.73789]
[1730311313536,3.73726,2675.8,2675.4,0.7708]
[1730311313908,3.73714,2675.9,2675.4,0.7708]
[1730311314137,3.73748,2675.6,2675.4,0.7708]
[1730311314442,7.47458,2675.8,2675.4,0.7708]
[1730311314642,3.73738,2675.7,2675.4,0.7708]
[1730311315431,3.59757,2676.0,2675.4,0.7708]
[1730311315630,3.59757,2676.0,2674.8,4.5653]
[1730311315631,3.73789,2675.3,2674.8,4.5653]
[1730311315830,3.73789,2675.3,2674.8,8.30381]
[1730311316022,3.73789,2675.3,2674.8,4.5653]
[1730311316222,3.73789,2675.3,2674.8,8.30383]
[1730311316542,3.73789,2675.3,2674.9,3.73845]
[1730311316748,3.73761,2675.5,2674.9,3.73845]
[1730311316951,3.73761,2675.5,2675.1,0.8315]
[1730311317113,3.73793,2675.3,2675.1,0.8315]
[1730311317449,3.7379,2675.3,2675.1,0.8315]
[1730311317610,3.73789,2675.3,2674.8,0.8315]
[1730311317910,3.73805,2675.2,2674.8,0.8315]
[1730311318114,3.59757,2675.4,2674.8,0.8315]
[1730311318308,3.73809,2675.2,2674.8,0.8315]
[1730311319448,3.73821,2675.1,2674.8,0.8315]
[1730311320049,3.73803,2675.3,2674.8,0.8315]
[1730311320352,3.73803,2675.3,2674.8,4.57008]
[1730311320918,3.73808,2675.2,2674.8,0.8315]
[1730311321857,3.73803,2675.3,2674.8,4.57009]
[1730311322024,3.73802,2675.3,2674.8,1.288514]
[1730311322226,3.73771,2675.5,2675.0,0.7753]
[1730311322543,3.73753,2675.6,2675.0,0.7753]
[1730311322744,7.47509,2675.6,2675.1,3.73809]
[1730311322918,3.73753,2675.6,2675.1,3.73809]
[1730311323125,3.59757,2675.7,2675.0,0.7753]
[1730311323334,3.59757,2675.7,2674.5,0.3839]
[1730311323335,7.33498,2675.7,2675.3,0.758]
[1730311324060,3.59757,2675.7,2675.3,0.758]
[1730311324425,7.33498,2675.7,2675.3,0.758]
[1730311325039,3.73754,2675.6,2675.3,0.758]
[1730311325262,3.73791,2675.3,2675.1,0.7837]
[1730311325562,3.59757,2675.4,2674.8,0.8164]
[1730311325563,3.73803,2675.2,2674.8,0.8164]
[1730311326359,3.73803,2675.2,2674.8,4.55499]
[1730311326559,7.33542,2675.4,2674.8,0.8164]
[1730311326799,7.33542,2675.4,2674.9,3.73844]
[1730311326973,11.07329,2675.4,2674.9,3.73844]
[1730311327129,7.33542,2675.4,2674.9,3.73844]
[1730311327470,7.3354,2675.4,2674.9,3.73844]
[1730311327666,3.59757,2675.7,2675.1,4.53709]
[1730311327841,3.73749,2675.6,2675.1,4.53709]
[1730311328041,7.33502,2675.7,2675.2,3.73796]
[1730311328377,3.73707,2675.9,2675.4,3.73765]
[1730311328530,3.73686,2676.1,2675.7,0.8034]
[1730311328531,3.7368,2676.1,2675.7,0.8034]
[1730311328733,3.7365,2676.3,2675.7,4.54071]
[1730311328929,3.73683,2676.1,2675.7,0.8034]
[1730311329238,3.73717,2675.9,2675.5,0.8034]
[1730311329431,4.470644,2675.9,2675.5,0.8034]
[1730311329661,3.73706,2675.9,2675.5,0.8034]
[1730311331046,3.73706,2675.9,2675.5,4.541]
[1730311331244,3.59757,2676.0,2675.5,0.8034]
[1730311331451,3.59757,2676.0,2675.6,3.73747]
[1730311332271,7.33451,2676.0,2675.5,4.541]
[1730311333331,0.5876,2676.4,2675.7,4.55377]
[1730311333332,3.73669,2676.2,2675.7,4.55377]
[1730311335562,7.33416,2676.3,2675.8,3.73719]
[1730311335888,4.18517,2676.9,2676.0,0.8227]
[1730311336036,3.73614,2676.6,2676.1,3.73676]
[1730311336236,4.87786369,2676.6,2676.1,3.73676]
[1730311336542,3.73614,2676.6,2676.2,0.7812]
[1730311336741,7.3336,2676.7,2676.2,4.51779]
[1730311337860,3.73603,2676.7,2676.2,4.51779]
[1730311338086,7.33334,2676.9,2676.3,3.73647]
[1730311338376,7.33334,2676.9,2676.4,4.51752]
[1730311338577,7.33333,2676.9,2676.4,4.51752]
[1730311339492,3.7358,2676.8,2676.4,4.51752]
[1730311339771,3.73581,2676.8,2676.4,0.7812]
[1730311341181,3.73598,2676.7,2676.4,0.7812]
[1730311341637,11.06909,2676.9,2676.4,0.7812]
[1730311342676,3.73554,2677.0,2676.4,4.51755]
[1730311342975,3.73538,2677.2,2676.6,4.50832]
[1730311343182,3.73538,2677.2,2676.8,0.7723]
[1730311343342,3.73509,2677.4,2676.8,1.37469089]
[1730311343683,3.73512,2677.3,2676.8,1.37469089]
[1730311344881,3.73533,2677.2,2676.8,1.37469089]
[1730311345045,3.73532,2677.2,2676.8,0.7723]
[1730311345245,3.73546,2677.1,2676.8,0.7723]
[1730311345468,3.59757,2677.3,2676.8,0.7723]
[1730311345863,3.73525,2677.2,2676.8,0.7723]
[1730311347075,3.59757,2677.3,2676.8,0.7723]
[1730311347282,7.33272,2677.3,2676.8,0.7723]
[1730311347804,3.73617,2676.6,2676.4,0.7782]
[1730311348010,3.73617,2676.6,2675.4,7.43]
[1730311348011,3.73664,2676.2,2676.1,0.7782]
[1730311348704,3.73664,2676.2,2675.6,0.7865]
[1730311348869,3.73664,2676.2,2675.7,0.452405]
[1730311350272,3.73654,2676.3,2675.7,0.52714185]
[1730311350605,3.73651,2676.3,2675.8,0.7865]
[1730311351312,3.7365,2676.3,2675.8,0.7865]
[1730311352471,3.73699,2676.0,2675.4,0.7966]
[1730311352708,4.110849,2675.9,2675.4,0.7966]
[1730311352908,3.73715,2675.9,2675.4,0.7966]
[1730311353684,3.73694,2676.0,2675.4,4.53434]
[1730311354410,3.73694,2676.0,2675.5,0.07474361]
[1730311354611,3.73671,2676.2,2675.7,0.7966]
[1730311354914,3.73671,2676.2,2675.7,0.87133832]
[1730311355498,3.73671,2676.2,2675.7,0.7966]
[1730311355703,3.73681,2676.1,2675.7,0.7966]
[1730311356215,3.73667,2676.2,2675.7,0.7966]
[1730311356790,3.73679,2676.1,2675.7,0.7966]
[1730311359024,3.73692,2676.0,2675.7,0.7966]
[1730311359329,3.73679,2676.1,2675.7,0.7966]
[1730311359821,3.73696,2676.0,2675.7,0.7966]
[1730311359993,3.73706,2675.9,2675.7,0.7966]
[1730311360613,3.7372,2675.8,2675.7,0.7966]
[1730311361301,3.73706,2675.9,2675.7,0.7966]
[1730311363323,3.73689,2676.1,2675.7,0.7966]
[1730311364310,3.73699,2676.0,2675.7,0.7966]
[1730311364920,3.73689,2676.1,2675.7,0.7966]
[1730311365625,7.47378,2676.1,2675.7,0.7966]
[1730311365837,3.7366,2676.3,2675.7,0.7966]
[1730311366137,4.32383,2676.5,2675.7,0.7966]
[1730311366138,3.73688,2676.1,2675.7,0.7966]
[1730311368733,3.73692,2676.0,2675.7,0.7966]
[1730311369847,3.73679,2676.1,2675.7,0.7966]
[1730311370149,3.73678,2676.1,2675.7,0.7966]
[1730311370333,3.73694,2676.0,2675.7,0.7966]
[1730311371522,0.432383,2676.4,2675.7,0.7966]
[1730311371729,3.73615,2676.6,2676.1,3.73671]
[1730311372014,3.73582,2676.8,2676.4,0.776]
[1730311372244,8.05884,2677.0,2676.4,0.776]
[1730311372447,7.47063,2677.2,2676.8,0.776]
[1730311372745,3.73562,2677.0,2676.8,0.776]
[1730311373043,3.73533,2677.2,2676.8,0.776]
[1730311373341,3.73526,2677.2,2676.8,0.776]
[1730311373505,3.73541,2677.1,2676.8,0.776]
[1730311373936,3.73526,2677.2,2676.8,0.776]
[1730311374144,3.7354,2677.1,2676.8,0.776]
[1730311374608,4.32243,2677.5,2676.8,0.776]
[1730311374609,3.73525,2677.2,2676.8,0.776]
[1730311375011,3.73541,2677.1,2676.8,0.776]
[1730311375206,3.73541,2677.1,2676.8,1.227187]
[1730311375436,3.73522,2677.3,2676.8,1.227187]
[1730311375643,3.73526,2677.2,2676.8,1.227187]
[1730311376524,7.47062,2677.2,2676.8,1.227187]
[1730311376725,3.73526,2677.2,2676.8,1.227187]
[1730311377931,3.73547,2677.1,2676.8,1.227187]
[1730311378461,3.73547,2677.1,2676.9,0.4963117]
[1730311378825,3.73547,2677.1,2676.8,0.776]
[1730311379025,3.73525,2677.2,2676.8,0.776]
[1730311379222,3.73504,2677.4,2676.8,0.85071055]
[1730311379431,3.73497,2677.4,2676.9,3.8102474]
[1730311379935,3.73497,2677.4,2676.9,3.8102444]
[1730311380260,3.73497,2677.4,2677.0,3.73551]
[1730311380571,3.73426,2677.9,2677.4,3.73495]
[1730311380723,3.73426,2677.9,2677.5,1.165395]
[1730311380724,3.73447,2677.8,2677.5,1.165395]
[1730311380923,3.73453,2677.8,2677.5,0.7919]
[1730311381420,3.7344,2677.8,2677.2,0.7919]
[1730311381659,3.59757,2677.9,2677.2,0.7919]
[1730311381660,3.73505,2677.4,2677.2,0.7919]
[1730311383276,3.73477,2677.6,2677.2,0.7919]
[1730311383783,3.73484,2677.5,2677.2,0.7919]
[1730311383991,3.73496,2677.4,2677.2,0.7919]
[1730311384491,3.73549,2677.1,2676.7,0.773]
[1730311384897,3.59757,2677.6,2676.7,0.773]
[1730311384898,3.73574,2676.9,2676.7,0.773]
[1730311385573,0.5876,2677.3,2676.7,0.773]
[1730311386280,3.73574,2676.9,2676.7,0.773]
[1730311387995,3.73524,2677.2,2676.5,4.51364]
[1730311388163,3.73548,2677.1,2676.6,3.73607]
[1730311389059,3.73552,2677.0,2676.5,4.51364]
[1730311389970,3.73515,2677.3,2676.9,0.7776]
[1730311391162,3.735,2677.4,2676.9,0.7776]
[1730311391405,3.73531,2677.2,2676.9,0.7776]
[1730311392199,3.7351,2677.3,2676.9,4.58795475]
[1730311392403,3.7351,2677.3,2676.9,4.51325]
[1730311392572,3.7351,2677.3,2677.0,0.451325]
[1730311392963,3.73532,2677.2,2677.0,0.451325]
[1730311393260,3.73532,2677.2,2676.9,0.7776]
[1730311393457,3.59757,2677.4,2676.9,0.7776]
[1730311393692,3.73511,2677.3,2676.9,0.7776]
[1730311393899,3.73525,2677.2,2676.9,0.7776]
[1730311395788,3.7351,2677.3,2676.9,0.7776]
[1730311395993,3.59757,2677.4,2676.9,0.7776]
[1730311396207,3.7351,2677.3,2676.9,1.228945]
[1730311396408,3.7351,2677.3,2676.9,4.964605]
[1730311396822,3.59757,2677.4,2676.9,4.964605]
[1730311397128,3.73463,2677.7,2677.3,0.8252]
[1730311397426,3.73471,2677.6,2677.3,0.8252]
[1730311398923,3.73484,2677.5,2677.3,0.8252]
[1730311399298,3.73531,2677.2,2676.9,0.7929]
[1730311399506,7.33267,2677.3,2676.9,0.7929]
[1730311399700,3.73524,2677.2,2676.9,0.7929]
[1730311400027,7.33267,2677.3,2676.9,4.52848]
[1730311400330,3.73498,2677.4,2676.9,4.98882494]
[1730311400631,3.73498,2677.4,2676.9,8.72440494]
[1730311400827,3.73498,2677.4,2677.0,0.59381495]
[1730311401191,3.73516,2677.3,2677.0,0.59381495]
[1730311402434,3.73544,2677.1,2676.9,0.7929]
[1730311402643,3.73544,2677.1,2676.4,0.3739]
[1730311402644,3.59757,2677.0,2676.4,0.8316]
[1730311402858,3.73594,2676.7,2676.4,0.8316]
[1730311403012,3.73566,2676.9,2676.5,0.46241299]
[1730311403615,3.73519,2677.3,2676.7,4.51556]
[1730311403814,3.73531,2677.2,2676.8,0.7797]
[1730311404706,3.73532,2677.2,2676.8,0.7797]
[1730311404911,3.73552,2677.1,2676.8,0.7797]
[1730311405114,3.73521,2677.3,2676.8,0.7797]
[1730311405413,3.73525,2677.2,2676.8,0.7797]
[1730311405954,7.692377,2677.4,2676.8,0.7797]
[1730311406255,3.73532,2677.2,2676.8,0.7797]
[1730311406926,3.73545,2677.1,2676.8,0.7797]
[1730311407123,3.957327,2677.4,2676.8,0.7797]
[1730311407449,3.73597,2676.7,2676.4,0.7826]
[1730311408152,3.73622,2676.6,2676.4,0.7826]
[1730311408646,3.73617,2676.6,2676.4,0.7826]
[1730311409520,7.47237,2676.6,2676.4,0.7826]
[1730311409724,3.7365,2676.3,2676.2,0.7826]
[1730311410423,3.73692,2676.0,2675.9,0.7826]
[1730311410758,3.73719,2675.9,2675.6,0.7826]
[1730311412146,3.73692,2676.0,2675.6,1.234627]
[1730311412349,3.7368,2676.1,2675.6,1.234627]
[1730311412853,3.7367,2676.2,2675.6,1.234627]
[1730311413147,3.73686,2676.1,2675.6,4.972097]
[1730311413318,3.73698,2676.0,2675.6,1.234627]
[1730311413517,3.73698,2676.0,2675.6,0.7826]
[1730311413722,3.73731,2675.8,2675.6,0.7826]
[1730311413941,7.47426,2675.9,2675.6,0.7826]
[1730311414142,3.73713,2675.9,2675.6,0.7826]
[1730311415188,3.73722,2675.8,2675.6,0.7826]
[1730311416787,3.73713,2675.9,2675.6,0.7826]
[1730311417154,3.7372,2675.8,2675.6,0.7826]
[1730311417890,3.7372,2675.8,2675.4,0.7533]
[1730311418267,3.73737,2675.7,2675.4,0.7533]
[1730311419385,3.73761,2675.5,2675.4,0.7533]
[1730311419599,3.73749,2675.6,2675.1,4.62564831]
[1730311419887,3.73749,2675.6,2675.1,8.36374831]
[1730311420298,3.73749,2675.6,2675.1,4.62564831]
[1730311420456,3.73749,2675.6,2675.1,8.36371831]
[1730311420821,3.73749,2675.6,2675.1,4.62564831]
[1730311421089,3.73749,2675.6,2675.1,4.56957]
[1730311421784,3.73748,2675.6,2675.1,4.56957]
[1730311422288,4.110928,2675.8,2675.2,3.73802]
[1730311422477,3.73722,2675.8,2675.2,3.73795]
[1730311422647,3.73722,2675.8,2675.3,3.73789]
[1730311423130,3.73736,2675.7,2675.3,3.73789]
[1730311425322,3.73721,2675.8,2675.3,3.73789]
[1730311425523,3.73721,2675.8,2675.3,7.4757]
[1730311426212,3.73736,2675.7,2675.3,3.73781]
[1730311426547,3.73747,2675.6,2675.1,4.56966]
[1730311427053,3.73736,2675.7,2675.2,3.73803]
[1730311427248,3.73753,2675.6,2675.1,4.56966]
[1730311428246,3.73753,2675.6,2675.1,4.62574142]
[1730311428455,3.73753,2675.6,2675.1,8.36381142]
[1730311428749,3.73753,2675.6,2675.1,4.62565142]
[1730311428943,3.73736,2675.7,2675.2,3.73795]
[1730311430089,3.73736,2675.7,2675.3,3.73788]
[1730311430715,3.73749,2675.6,2675.2,4.194987]
[1730311430924,3.73736,2675.7,2675.2,3.73795]
[1730311431720,3.73736,2675.7,2675.2,3.73797]
[1730311432033,3.73736,2675.7,2675.2,7.47594]
[1730311432634,3.73755,2675.6,2675.1,4.56967]
[1730311433141,3.73783,2675.4,2675.1,0.8315]
[1730311433288,3.73803,2675.3,2675.1,0.8315]
[1730311433494,3.73803,2675.3,2674.9,4.49919]
[1730311433706,3.73803,2675.3,2675.0,4.0]
[1730311434329,3.73769,2675.5,2674.9,4.49916]
[1730311434542,3.73776,2675.4,2674.9,8.23753]
[1730311435200,3.73776,2675.4,2675.0,0.3739]
[1730311435409,3.73776,2675.4,2674.9,4.49916]
[1730311435601,3.73791,2675.3,2674.9,4.49916]
[1730311436327,3.73776,2675.4,2674.9,8.23752]
[1730311436534,3.73776,2675.4,2674.9,4.49916]
[1730311437330,3.73776,2675.4,2674.9,8.23755]
[1730311437535,4.59707456,2675.4,2674.9,8.23755]
[1730311437707,0.85931456,2675.4,2675.0,3.73823]
[1730311437905,1.11769558,2675.6,2674.9,0.7608]
[1730311438124,3.73775,2675.4,2674.9,4.49919]
[1730311438442,3.73791,2675.3,2674.9,4.49919]
[1730311438608,3.7381,2675.2,2674.9,0.7608]
[1730311438995,3.73785,2675.4,2674.9,4.49925]
[1730311439417,3.73796,2675.3,2674.9,4.49925]
[1730311439658,3.73796,2675.3,2674.9,0.7608]
[1730311439860,3.73813,2675.2,2674.9,0.7608]
[1730311440275,3.73813,2675.2,2674.7,0.804]
[1730311440449,3.73813,2675.2,2674.7,4.54261]
[1730311440975,3.73825,2675.1,2674.7,0.804]
[1730311441469,3.73775,2675.4,2674.7,0.804]
[1730311441685,3.73775,2675.4,2674.4,1.1429]
[1730311441686,3.73859,2674.8,2674.4,1.1429]
[1730311441971,7.47727,2674.8,2674.4,1.1429]
[1730311442178,3.73846,2674.9,2674.4,0.769]
[1730311442490,3.73832,2675.0,2674.5,3.73894]
[1730311442770,3.73779,2675.4,2674.9,0.769]
[1730311442979,3.73779,2675.4,2674.9,4.50738]
[1730311443164,3.73779,2675.4,2675.0,3.73825]
[1730311443372,3.73759,2675.6,2675.0,3.73825]
[1730311443373,3.73759,2675.6,2675.1,3.73805]
[1730311443553,4.32467,2675.9,2675.4,3.73774]
[1730311443754,3.73723,2675.8,2675.5,0.7536]
[1730311444066,3.73706,2675.9,2675.5,0.7536]
[1730311444270,3.73684,2676.1,2675.6,3.73745]
[1730311444479,4.32426,2676.2,2675.7,3.73726]
[1730311444770,0.02,2677.0,2675.7,3.73726]
[1730311444771,3.73657,2676.3,2675.8,0.7536]
[1730311444970,0.02,2677.0,2675.8,0.7536]
[1730311444971,3.73604,2676.7,2676.1,3.73677]
[1730311445283,3.73609,2676.6,2676.2,4.53504]
[1730311445683,3.73609,2676.6,2676.2,0.7984]
[1730311445905,3.7363,2676.5,2676.2,0.7984]
[1730311446554,3.73673,2676.2,2675.8,0.8006]
[1730311446769,3.73706,2675.9,2675.7,4.0]
[1730311446994,3.73706,2675.9,2675.2,3.0]
[1730311446995,3.7374,2675.7,2675.3,0.8103]
[1730311447144,3.73768,2675.5,2675.3,0.8103]
[1730311447350,3.73768,2675.5,2675.0,3.79438527]
[1730311447351,3.73791,2675.3,2675.0,0.8103]
[1730311447661,3.73791,2675.3,2673.8,0.58507433]
[1730311447662,4.18517,2675.2,2673.8,0.58507433]
[1730311447868,4.18517,2675.2,2674.0,7.73963]
[1730311447869,7.33625,2674.8,2674.0,7.73963]
[1730311448172,7.33625,2674.8,2674.1,4.5034]
[1730311448173,3.73886,2674.7,2674.1,4.5034]
[1730311448643,3.73888,2674.6,2674.1,0.7639]
[1730311449960,3.7391,2674.5,2674.1,0.7639]
[1730311450293,0.5876,2676.6,2674.9,0.01]
[1730311450449,7.33393,2676.4,2675.6,3.73735]
[1730311450649,0.733393,2676.3,2675.7,3.73722]
[1730311450909,3.73667,2676.2,2675.6,3.73747]
[1730311451071,3.7365,2676.3,2675.6,3.73747]
[1730311451575,3.73626,2676.5,2675.7,0.8072]
[1730311451886,3.73603,2676.7,2676.0,3.7369]
[1730311452120,4.32326,2676.9,2676.2,3.73661]
[1730311452402,3.73566,2676.9,2676.3,4.55308]
[1730311452592,3.73582,2676.8,2676.3,4.55308]
[1730311452763,3.73601,2676.7,2676.3,0.8166]
[1730311452964,0.747183,2676.7,2676.3,0.8166]
[1730311453163,3.73582,2676.8,2676.3,0.8166]
[1730311453399,4.468911,2677.0,2676.3,4.55302]
[1730311453630,4.468911,2677.0,2676.4,3.73635]
[1730311453767,4.468911,2677.0,2676.4,3.73636]
[1730311453966,0.4468911,2676.9,2676.4,3.73636]
[1730311454379,0.733301,2677.0,2676.4,0.07472011]
[1730311454698,3.73534,2677.2,2676.7,3.73592]
[1730311455274,7.47067,2677.2,2676.6,3.73597]
[1730311455468,0.747067,2677.1,2676.6,3.73597]
[1730311455669,3.73533,2677.2,2676.6,3.73597]
[1730311455670,3.73533,2677.2,2676.6,7.47195]
[1730311456213,7.47066,2677.2,2676.6,3.73597]
[1730311456701,3.73538,2677.1,2676.6,3.73597]
[1730311457023,3.73502,2677.4,2676.8,3.73573]
[1730311457305,3.73502,2677.4,2677.0,3.73541]
[1730311457306,0.373502,2677.4,2677.0,3.73541]
[1730311457480,3.73476,2677.6,2677.0,3.73541]
[1730311457802,3.73456,2677.7,2677.2,3.73522]
[1730311458008,3.73456,2677.7,2676.9,0.7709]
[1730311458009,3.7349,2677.5,2676.9,0.7709]
[1730311458216,4.78157451,2678.1,2676.9,0.7709]
[1730311458217,4.18397451,2677.8,2676.9,0.7709]
[1730311458427,3.73551,2677.1,2676.6,0.8333]
[1730311458722,3.73557,2677.0,2676.6,0.8333]
[1730311458886,7.47103,2677.1,2676.6,0.8333]
[1730311459090,3.73554,2677.0,2676.6,0.8333]
[1730311459803,3.73565,2677.0,2676.6,0.8333]
[1730311460007,3.73569,2676.9,2676.6,0.8333]
[1730311460311,7.844571,2677.1,2676.6,0.8333]
[1730311460642,4.109061,2677.1,2676.6,0.8333]
[1730311460816,7.844541,2677.1,2676.6,0.8333]
[1730311461130,3.73554,2677.0,2676.6,0.8333]
[1730311464002,3.73573,2676.9,2676.6,0.8333]
[1730311464204,3.73594,2676.7,2676.3,0.7708]
[1730311464526,3.73622,2676.5,2676.3,0.7708]
[1730311464725,3.73599,2676.7,2676.3,0.7708]
[1730311464943,7.47202,2676.7,2676.3,0.7708]
[1730311465228,3.73599,2676.7,2676.3,0.7708]
[1730311465694,7.47153,2676.9,2676.3,4.50728]
[1730311466113,3.73574,2676.9,2676.3,4.50728]
[1730311466309,3.7359,2676.8,2676.3,4.50728]
[1730311467049,3.73574,2676.9,2676.3,0.7708]
[1730311467206,3.73602,2676.7,2676.3,0.7708]
[1730311467536,7.47208,2676.7,2676.3,0.7708]
[1730311467746,0.4109091,2677.0,2676.3,0.7708]
[1730311467747,7.4726,2676.5,2676.3,0.7708]
[1730311468038,7.47257,2676.5,2676.0,4.48755]
[1730311468254,3.73636,2676.4,2675.9,0.3739]
[1730311468399,3.73636,2676.4,2675.7,0.7507]
[1730311468600,3.73675,2676.2,2675.7,0.7507]
[1730311468840,3.7365,2676.3,2675.7,0.7507]
[1730311469026,3.73664,2676.2,2675.7,0.7507]
[1730311469605,3.73682,2676.1,2675.7,0.7507]
[1730311470431,3.73682,2676.1,2675.7,4.48802]
[1730311470732,3.73682,2676.1,2675.7,0.7507]
[1730311471103,7.47372,2676.1,2675.7,0.7507]
[1730311471299,3.73682,2676.1,2675.7,0.7507]
[1730311472046,3.73664,2676.2,2675.7,0.7507]
[1730311472339,1.019983,2676.3,2675.7,0.7507]
[1730311472638,3.73664,2676.2,2675.7,4.48801]
[1730311473251,3.73687,2676.1,2675.7,0.7507]
[1730311473536,0.5876,2676.3,2675.7,0.7507]
[1730311473537,3.73707,2675.9,2675.7,0.7507]
[1730311474830,3.7367,2676.2,2675.4,0.8274]
[1730311475050,3.73715,2675.9,2675.4,0.8274]
[1730311475339,3.7372,2675.8,2675.4,0.8274]
[1730311475503,3.73706,2675.9,2675.4,4.56513]
[1730311476327,3.73706,2675.9,2675.4,0.8274]
[1730311476497,3.7372,2675.8,2675.4,0.8274]
[1730311476704,4.16932,2676.1,2675.4,0.8274]
[1730311477028,3.73714,2675.9,2675.4,0.8274]
[1730311477230,3.73714,2675.9,2675.4,4.56511]
[1730311477441,3.73689,2676.1,2675.5,3.73755]
[1730311477604,0.5876,2676.3,2675.5,3.73755]
[1730311477798,3.73678,2676.1,2675.5,3.73748]
[1730311478100,3.737,2676.0,2675.5,3.73748]
[1730311478717,3.737,2676.0,2675.5,7.47502]
[1730311478914,7.47404,2676.0,2675.5,3.73748]
[1730311479132,3.73673,2676.2,2675.6,3.73745]
[1730311479451,3.73678,2676.1,2675.6,3.73745]
[1730311480454,4.32372,2676.6,2675.7,4.45286485]
[1730311480455,0.5876,2676.6,2675.7,4.45286485]
[1730311480740,3.73622,2676.5,2675.8,3.73708]
[1730311480916,3.73645,2676.4,2675.9,3.73703]
[1730311481806,3.73645,2676.4,2675.9,3.81176279]
[1730311482007,3.73645,2676.4,2675.9,0.07473279]
[1730311482552,3.73645,2676.4,2675.9,3.81177279]
[1730311482902,3.73667,2676.2,2675.7,8.11545235]
[1730311483108,7.47188,2676.7,2675.8,3.73718]
[1730311483109,3.7365,2676.3,2675.8,3.73718]
[1730311483307,3.73636,2676.5,2675.8,3.7371]
[1730311483614,3.73643,2676.4,2675.8,3.7371]
[1730311483802,3.73653,2676.3,2675.8,3.7371]
[1730311484015,4.3235,2676.8,2676.0,0.7713]
[1730311484243,3.73629,2676.5,2676.0,4.50812]
[1730311484417,7.47196,2676.7,2676.1,3.73665]
[1730311484616,8.219156,2676.7,2676.1,3.73665]
[1730311484943,7.47196,2676.7,2676.1,3.73665]
[1730311485243,3.73594,2676.7,2676.2,3.73657]
[1730311485426,3.73582,2676.8,2676.4,0.7713]
[1730311486504,3.73568,2676.9,2676.4,4.958411]
[1730311486708,3.73568,2676.9,2676.4,5.03313002]
[1730311486919,3.73568,2676.9,2676.4,4.958411]
[1730311487216,3.73568,2676.9,2676.4,5.03312979]
[1730311487416,3.73562,2677.0,2676.5,3.7362]
[1730311487629,3.73562,2677.0,2676.7,0.7723]
[1730311488016,3.73535,2677.2,2676.7,4.5828352]
[1730311488225,3.73507,2677.4,2676.7,8.10595235]
[1730311488433,3.73478,2677.6,2677.0,0.7723]
[1730311488743,3.73478,2677.6,2677.0,4.58243104]
[1730311488744,3.7349,2677.5,2677.0,4.58243104]
[1730311488957,3.7349,2677.5,2677.0,5.13329195]
[1730311490225,3.7349,2677.5,2677.1,3.73535]
[1730311490942,3.7349,2677.5,2677.0,1.32316091]
[1730311491142,3.73498,2677.4,2677.0,1.32316091]
[1730311491445,3.7349,2677.5,2677.0,5.13336135]
[1730311491644,3.7349,2677.5,2677.1,0.50329898]
[1730311492008,3.73463,2677.7,2677.2,0.7508]
[1730311492208,3.73435,2677.9,2677.2,0.82550037]
[1730311492523,3.73435,2677.9,2677.4,0.7508]
[1730311492868,3.73448,2677.8,2677.4,0.7508]
[1730311493707,3.73421,2678.0,2677.4,0.7508]
[1730311494028,3.73429,2677.9,2677.4,4.48572]
[1730311494414,3.73429,2677.9,2677.4,4.5604107]
[1730311495025,3.73429,2677.9,2677.4,0.8254907]
[1730311495416,3.73421,2678.0,2677.5,3.73482]
[1730311495978,3.734,2678.1,2677.5,3.73474]
[1730311496279,3.73395,2678.2,2677.6,0.83328654]
[1730311496490,3.73394,2678.2,2677.6,5.07119552]
[1730311496843,3.73414,2678.0,2677.6,1.33658552]
[1730311497044,3.73427,2677.9,2677.6,1.26189898]
[1730311497245,3.73454,2677.7,2677.6,0.7586]
[1730311497542,3.73441,2677.8,2677.6,0.7586]
[1730311497843,3.7343,2677.9,2677.6,0.7586]
[1730311498477,7.46844,2678.0,2677.6,0.7586]
[1730311498678,3.73418,2678.0,2677.6,0.7586]
[1730311499259,3.73435,2677.9,2677.6,0.7586]
[1730311499460,3.73441,2677.8,2677.6,0.7586]
[1730311499859,3.73427,2677.9,2677.6,0.7586]
[1730311501074,3.73418,2678.0,2677.6,0.7586]
[1730311501277,3.73423,2678.0,2677.6,0.7586]
[1730311501793,3.7343,2677.9,2677.6,0.7586]
[1730311503790,3.73414,2678.0,2677.6,0.7586]
[1730311504296,3.73434,2677.9,2677.6,0.7586]